fUST/lending_fUST_20240322
["ID","MTS","AMOUNT","RATE_DAILY","PERIOD"]
[320045405,1711111869686,-767.28,0.0003178,2]
[320045406,1711111869695,-500.0,0.0003178,2]
[320045407,1711111869706,-500.0,0.0003178,2]
[320045408,1711111869716,-500.0,0.0003178,2]
[320045409,1711111869727,-500.0,0.0003178,2]
[320045410,1711111869737,-500.0,0.0003178,2]
[320045411,1711111869747,-500.0,0.0003178,2]
[320045412,1711111869761,-500.0,0.0003178,2]
[320045413,1711111869771,-745.25,0.0003178,2]
[320045414,1711111869781,-1050.15,0.0003178,2]
[320045415,1711111869791,-822.63,0.0003178,2]
[320045416,1711111869801,-521.77,0.0003178,2]
[320045417,1711111869811,-500.0,0.0003178,2]
[320045418,1711111869821,-500.0,0.0003178,2]
[320045419,1711111869830,-500.0,0.0003178,2]
[320045420,1711111869840,-500.0,0.0003178,2]
[320045421,1711111869849,-500.0,0.0003178,2]
[320045422,1711111869859,-822.04,0.0003178,2]
[320045423,1711111869872,-765.25,0.0003178,2]
[320045424,1711111869882,-522.7,0.0003178,2]
[320045425,1711111869892,-500.0,0.0003178,2]
[320045426,1711111869901,-2819.12,0.0003178,2]
[320045427,1711111869911,-551.95,0.0003178,2]
[320045428,1711111869922,-1059.31,0.0003178,2]
[320045429,1711111869931,-1138.93,0.0003178,2]
[320045430,1711111869940,-500.0,0.0003178,2]
[320045431,1711111869950,-1081.36,0.0003178,2]
[320045432,1711111869960,-500.0,0.0003178,2]
[320045433,1711111869969,-1909.77,0.0003178,2]
[320045434,1711111869979,-3328.14,0.0003178,2]
[320045435,1711111869990,-500.0,0.0003178,2]
[320045436,1711111870002,-500.0,0.0003178,2]
[320045437,1711111870012,-1933.42,0.0003178,2]
[320045438,1711111870023,-697.43,0.0003178,2]
[320045439,1711111870032,-2814.01,0.0003178,2]
[320045440,1711111870042,-609.02,0.0003178,2]
[320045441,1711111870052,-701.09,0.0003178,2]
[320045442,1711111870063,-2894.22,0.0003178,2]
[320045443,1711111870073,-871.84,0.0003178,2]
[320045444,1711111870083,-500.0,0.0003178,2]
[320045445,1711111870093,-499.19217239,0.0003178,2]
[320045446,1711111870104,-1479.79,0.0003178,2]
[320045447,1711111870114,-385.57886927,0.0003178,2]
[320045448,1711111870124,-940.37,0.0003178,2]
[320045449,1711111870134,-4303.45,0.0003178,2]
[320045450,1711111870143,-500.0,0.0003178,2]
[320045451,1711111870154,-500.0,0.0003178,2]
[320045452,1711111870164,-632.84,0.0003178,2]
[320045453,1711111870180,-504.94,0.0003178,2]
[320045454,1711111870190,-500.0,0.0003178,2]
[320045455,1711111870202,-728.64,0.0003178,2]
[320045456,1711111870212,-500.0,0.0003178,2]
[320045457,1711111870222,-2000.0,0.0003178,2]
[320045458,1711111870232,-519.63,0.0003178,2]
[320045459,1711111870242,-500.0,0.0003178,2]
[320045460,1711111870254,-586.56,0.0003178,2]
[320045461,1711111870264,-500.0,0.0003178,2]
[320045462,1711111870275,-882.68,0.0003178,2]
[320045463,1711111870284,-500.0,0.0003178,2]
[320045464,1711111870294,-1163.15,0.0003178,2]
[320045465,1711111870304,-516.59,0.0003178,2]
[320045466,1711111870313,-627.89,0.0003178,2]
[320045467,1711111870323,-500.0,0.0003178,2]
[320045468,1711111870335,-593.01,0.0003178,2]
[320045469,1711111870345,-500.0,0.0003178,2]
[320045470,1711111870355,-543.78,0.0003178,2]
[320045471,1711111870366,-500.0,0.0003178,2]
[320045472,1711111870376,-500.0,0.0003178,2]
[320045473,1711111870386,-593.17,0.0003178,2]
[320045474,1711111870396,-946.09,0.0003178,2]
[320045475,1711111870407,-162.17961263,0.0003178,2]
[320045476,1711111870417,-2447.47,0.0003178,2]
[320045477,1711111870427,-500.0,0.0003178,2]
[320045478,1711111870437,-560.61,0.0003178,2]
[320045479,1711111870447,-2700.82,0.0003178,2]
[320045480,1711111870458,-500.0,0.0003178,2]
[320045481,1711111870468,-2015.68,0.0003178,2]
[320045482,1711111870478,-2908.47,0.0003178,2]
[320045483,1711111870489,-12394.08,0.0003178,2]
[320045484,1711111870502,-500.0,0.0003178,2]
[320045485,1711111870517,-2967.04,0.0003178,2]
[320045486,1711111870526,-3908.24,0.0003178,2]
[320045487,1711111870537,-500.0,0.0003178,2]
[320045488,1711111870547,-259.71132868,0.0003178,2]
[320045489,1711111870558,-7010.86,0.0003178,2]
[320045490,1711111870567,-3562.59,0.0003178,2]
[320045491,1711111870577,-798.72,0.0003178,2]
[320045492,1711111870588,-5003.73,0.0003178,2]
[320045493,1711111870598,-1138.64,0.0003178,2]
[320045494,1711111870609,-620.82,0.0003178,2]
[320045495,1711111870620,-500.0,0.0003178,2]
[320045496,1711111870629,-674.43,0.0003178,2]
[320045497,1711111870640,-28754.89,0.0003178,2]
[320045498,1711111870650,-3444.81,0.0003178,2]
[320045499,1711111870659,-749.25,0.0003178,2]
[320045500,1711111870668,-2023.32,0.0003178,2]
[320045501,1711111870678,-1405.19,0.0003178,2]
[320045502,1711111870687,-763.48,0.0003178,2]
[320045503,1711111870697,-757.09,0.0003178,2]
[320045504,1711111870707,-7621.78,0.0003178,2]
[320045505,1711111870717,-500.0,0.0003178,2]
[320045506,1711111870727,-1000.0,0.0003178,2]
[320045507,1711111870736,-2763.71,0.0003178,2]
[320045508,1711111870745,-500.0,0.0003178,2]
[320045509,1711111870759,-535.08,0.0003178,2]
[320045510,1711111870769,-763.4,0.0003178,2]
[320045511,1711111870779,-503.664255,0.0003178,2]
[320045512,1711111870789,-500.0,0.0003178,2]
[320045513,1711111870798,-632.84,0.0003178,2]
[320045514,1711111870807,-3951.14,0.0003178,2]
[320045515,1711111870817,-1143.78,0.0003178,2]
[320045516,1711111870827,-500.0,0.0003178,2]
[320045517,1711111870837,-500.0,0.0003178,2]
[320045518,1711111870846,-221.66082681,0.0003178,2]
[320045519,1711111870855,-500.0,0.0003178,2]
[320045520,1711111870865,-1472.91,0.0003178,2]
[320045521,1711111870875,-500.0,0.0003178,2]
[320045522,1711111870884,-39504.62,0.0003178,2]
[320045523,1711111870894,-501.1,0.0003178,2]
[320045524,1711111870903,-2677.19,0.0003178,2]
[320045525,1711111870913,-3007.49,0.0003178,2]
[320045526,1711111870923,-1327.74,0.0003178,2]
[320045527,1711111870933,-7203.91,0.0003178,2]
[320045528,1711111870943,-37676.17,0.0003178,2]
[320045529,1711111870953,-569.34,0.0003178,2]
[320045530,1711111870963,-3691.34,0.0003178,2]
[320045531,1711111870973,-746.78,0.0003178,2]
[320045532,1711111870983,-2250.74,0.0003178,2]
[320045533,1711111870993,-526.24,0.0003178,2]
[320045534,1711111871005,-500.0,0.0003178,2]
[320045535,1711111871015,-3013.87,0.0003178,2]
[320045536,1711111871025,-8462.19,0.0003178,2]
[320045537,1711111871036,-500.0,0.0003178,2]
[320045538,1711111871046,-887.09,0.0003178,2]
[320045539,1711111871056,-500.0,0.0003178,2]
[320045540,1711111871066,-943.95,0.0003178,2]
[320045541,1711111871076,-2000.0,0.0003179,2]
[320045542,1711111871086,-2000.0,0.000318,2]
[320045543,1711111871095,-2000.0,0.0003181,2]
[320045544,1711111871106,-2000.0,0.0003182,2]
[320045545,1711111871116,-3219.683445,0.0003183,2]
[320045546,1711111871126,-153.0,0.00031863,2]
[320045547,1711111871136,-306.0,0.00031863,2]
[320045548,1711111871146,-349.4174135,0.00031863,2]
[320045549,1711111871155,-500.0,0.00032,5]
[320045550,1711111871166,-153.0,0.00032055,2]
[320045551,1711111871176,-153.0,0.00032055,2]
[320045552,1711111871186,-153.0,0.00032055,2]
[320045553,1711111871195,-153.0,0.00032055,2]
[320045554,1711111871206,-153.0,0.00032055,2]
[320045555,1711111871217,-153.0,0.00032055,2]
[320045556,1711111871227,-3263.22576854,0.00032165,2]
[320045557,1711111871238,-500.0,0.00032328,2]
[320045558,1711111871251,-500.0,0.00032328,2]
[320045559,1711111871261,-500.0,0.00032328,2]
[320045560,1711111871271,-1018.12,0.00032328,2]
[320045561,1711111871281,-540.48,0.00032328,2]
[320045562,1711111871292,-767.28,0.00032328,2]
[320045563,1711111871303,-491.75286376,0.00032328,2]
[320045564,1711111871313,-500.0,0.00032328,2]
[320045565,1711111871324,-500.0,0.00032328,2]
[320045566,1711111871336,-500.0,0.00032328,2]
[320045567,1711111871346,-500.0,0.00032328,2]
[320045568,1711111871357,-500.0,0.00032328,2]
[320045569,1711111871367,-500.0,0.00032328,2]
[320045570,1711111871377,-745.25,0.00032328,2]
[320045571,1711111871388,-1050.15,0.00032328,2]
[320045572,1711111871484,-822.63,0.00032328,2]
[320045573,1711111871494,-521.77,0.00032328,2]
[320045574,1711111871507,-295.49281063,0.00032328,2]
[320045575,1711111871518,-500.0,0.00032328,2]
[320045576,1711111871528,-500.0,0.00032328,2]
[320045577,1711111871538,-501.97136362,0.00032328,2]
[320045578,1711111871551,-500.0,0.00032328,2]
[320045579,1711111871561,-822.04,0.00032328,2]
[320045580,1711111871571,-765.25,0.00032328,2]
[320045581,1711111871580,-522.7,0.00032328,2]
[320045582,1711111871591,-500.0,0.00032328,2]
[320045583,1711111871600,-2819.12,0.00032328,2]
[320045584,1711111871611,-551.95,0.00032328,2]
[320045585,1711111871621,-1059.31,0.00032328,2]
[320045586,1711111871631,-1138.93,0.00032328,2]
[320045587,1711111871641,-500.0,0.00032328,2]
[320045588,1711111871652,-1081.36,0.00032328,2]
[320045589,1711111871662,-500.0,0.00032328,2]
[320045590,1711111871672,-1909.77,0.00032328,2]
[320045591,1711111871682,-3328.14,0.00032328,2]
[320045592,1711111871692,-500.0,0.00032328,2]
[320045593,1711111871701,-500.0,0.00032328,2]
[320045594,1711111871711,-1933.42,0.00032328,2]
[320045595,1711111871723,-697.43,0.00032328,2]
[320045596,1711111871733,-2814.01,0.00032328,2]
[320045597,1711111871743,-609.02,0.00032328,2]
[320045598,1711111871755,-701.09,0.00032328,2]
[320045599,1711111871765,-2894.22,0.00032328,2]
[320045600,1711111871775,-871.84,0.00032328,2]
[320045601,1711111871786,-500.0,0.00032328,2]
[320045602,1711111871796,-1479.79,0.00032328,2]
[320045603,1711111871806,-940.37,0.00032328,2]
[320045604,1711111871816,-4303.45,0.00032328,2]
[320045605,1711111871826,-500.0,0.00032328,2]
[320045606,1711111871835,-500.0,0.00032328,2]
[320045607,1711111871846,-632.84,0.00032328,2]
[320045608,1711111871855,-504.94,0.00032328,2]
[320045609,1711111871865,-500.0,0.00032328,2]
[320045610,1711111871875,-728.64,0.00032328,2]
[320045611,1711111871884,-500.0,0.00032328,2]
[320045612,1711111871893,-519.63,0.00032328,2]
[320045613,1711111871902,-500.0,0.00032328,2]
[320045614,1711111871912,-586.56,0.00032328,2]
[320045615,1711111871922,-449.0147999,0.00032328,2]
[320045616,1711111871931,-882.68,0.00032328,2]
[320045617,1711111871941,-618.17841317,0.00032328,2]
[320045618,1711111871950,-1163.15,0.00032328,2]
[320045619,1711111871960,-516.59,0.00032328,2]
[320045620,1711111871970,-627.89,0.00032328,2]
[320045621,1711111871980,-500.0,0.00032328,2]
[320045622,1711111871990,-593.01,0.00032328,2]
[320045623,1711111872002,-500.0,0.00032328,2]
[320045624,1711111872011,-543.78,0.00032328,2]
[320045625,1711111872021,-500.0,0.00032328,2]
[320045626,1711111872032,-593.17,0.00032328,2]
[320045627,1711111872042,-946.09,0.00032328,2]
[320045628,1711111872052,-2447.47,0.00032328,2]
[320045629,1711111872061,-500.0,0.00032328,2]
[320045630,1711111872070,-560.61,0.00032328,2]
[320045631,1711111872080,-2700.82,0.00032328,2]
[320045632,1711111872091,-500.0,0.00032328,2]
[320045633,1711111872101,-2015.68,0.00032328,2]
[320045634,1711111872111,-2908.47,0.00032328,2]
[320045635,1711111872122,-12394.08,0.00032328,2]
[320045636,1711111872132,-500.0,0.00032328,2]
[320045637,1711111872141,-2967.04,0.00032328,2]
[320045638,1711111872151,-3908.24,0.00032328,2]
[320045639,1711111872161,-500.0,0.00032328,2]
[320045640,1711111872172,-7010.86,0.00032328,2]
[320045641,1711111872182,-3562.59,0.00032328,2]
[320045642,1711111872191,-798.72,0.00032328,2]
[320045643,1711111872200,-5003.73,0.00032328,2]
[320045644,1711111872210,-1138.64,0.00032328,2]
[320045645,1711111872220,-620.82,0.00032328,2]
[320045646,1711111872230,-500.03238454,0.00032328,2]
[320045647,1711111872240,-674.43,0.00032328,2]
[320045648,1711111872251,-28754.89,0.00032328,2]
[320045649,1711111872261,-3444.81,0.00032328,2]
[320045650,1711111872271,-749.25,0.00032328,2]
[320045651,1711111872281,-2023.32,0.00032328,2]
[320045652,1711111872291,-1405.19,0.00032328,2]
[320045653,1711111872301,-763.48,0.00032328,2]
[320045654,1711111872311,-757.09,0.00032328,2]
[320045655,1711111872321,-7621.78,0.00032328,2]
[320045656,1711111872332,-246.28499172,0.00032328,2]
[320045657,1711111872341,-758.65195657,0.00032328,2]
[320045658,1711111872351,-2763.71,0.00032328,2]
[320045659,1711111872361,-535.08,0.00032328,2]
[320045660,1711111872371,-763.4,0.00032328,2]
[320045661,1711111872380,-632.84,0.00032328,2]
[320045662,1711111872390,-601.68089456,0.00032328,2]
[320045663,1711111872400,-3951.14,0.00032328,2]
[320045664,1711111872409,-1143.78,0.00032328,2]
[320045665,1711111872418,-500.0,0.00032328,2]
[320045666,1711111872428,-500.0,0.00032328,2]
[320045667,1711111872439,-500.0,0.00032328,2]
[320045668,1711111872450,-1472.91,0.00032328,2]
[320045669,1711111872460,-500.0,0.00032328,2]
[320045670,1711111872469,-39504.62,0.00032328,2]
[320045671,1711111872478,-501.1,0.00032328,2]
[320045672,1711111872488,-2677.19,0.00032328,2]
[320045673,1711111872498,-3007.49,0.00032328,2]
[320045674,1711111872509,-1327.74,0.00032328,2]
[320045675,1711111872518,-7203.91,0.00032328,2]
[320045676,1711111872528,-37676.17,0.00032328,2]
[320045677,1711111872537,-569.34,0.00032328,2]
[320045678,1711111872549,-3691.34,0.00032328,2]
[320045679,1711111872559,-746.78,0.00032328,2]
[320045680,1711111872568,-2250.74,0.00032328,2]
[320045681,1711111872577,-526.24,0.00032328,2]
[320045682,1711111872587,-500.0,0.00032328,2]
[320045683,1711111872597,-3013.87,0.00032328,2]
[320045684,1711111872606,-8462.19,0.00032328,2]
[320045685,1711111872615,-124.3519208,0.00032328,2]
[320045686,1711111872635,-375.6480792,0.00032328,2]
[320045687,1711111872644,-77.4984303,0.00032328,2]
[320045688,1711111872658,-809.5915697,0.00032328,2]
[320045689,1711111872668,-500.0,0.00032328,2]
[320045690,1711111872677,-943.95,0.00032328,2]
[320045691,1711111872688,-153.0,0.00032329,2]
[320045692,1711111872698,-153.0,0.00032329,2]
[320045693,1711111872707,-153.0,0.00032329,2]
[320045694,1711111872717,-201.8484782,0.00032603,2]
[320045695,1711111872726,-403.0805187,0.00032603,2]
[320045696,1711111872736,-201.8484782,0.00032603,2]
[320045697,1711111872745,-201.8484782,0.00032603,2]
[320045698,1711111872757,-201.8484782,0.00032603,2]
[320045699,1711111872767,-201.8484782,0.00032603,2]
[320045700,1711111872777,-200.2658893,0.00032603,2]
[320045701,1711111872786,-201.8484782,0.00032603,2]
[320045702,1711111872796,-201.8484782,0.00032603,2]
[320045703,1711111872805,-201.8484782,0.00032603,2]
[320045704,1711111872815,-201.1009882,0.00032603,2]
[320045705,1711111872824,-153.0,0.00032603,2]
[320045706,1711111872834,-153.0,0.00032603,2]
[320045707,1711111872844,-153.0,0.00032603,2]
[320045708,1711111872854,-153.0,0.00032603,2]
[320045709,1711111872864,-153.0,0.00032603,2]
[320045710,1711111872875,-153.0,0.00032603,2]
[320045711,1711111872885,-153.0,0.00032603,2]
[320045712,1711111872895,-153.0,0.00032603,2]
[320045713,1711111872905,-153.0,0.00032603,2]
[320045714,1711111872916,-153.0,0.00032603,2]
[320045715,1711111872925,-153.0,0.00032603,2]
[320045716,1711111872935,-153.0,0.00032603,2]
[320045717,1711111872945,-153.0,0.00032603,2]
[320045718,1711111872955,-500.0,0.00032876,2]
[320045719,1711111872964,-500.0,0.00032876,2]
[320045720,1711111872975,-500.0,0.00032876,2]
[320045721,1711111872985,-1018.12,0.00032876,2]
[320045722,1711111872994,-540.48,0.00032876,2]
[320045723,1711111873005,-767.28,0.00032876,2]
[320045724,1711111873014,-500.0,0.00032876,2]
[320045725,1711111873023,-500.0,0.00032876,2]
[320045726,1711111873032,-500.0,0.00032876,2]
[320045727,1711111873042,-353.3432085,0.00032876,2]
[320045728,1711111873256,-500.0,0.00027397,2]
[320045729,1711111873266,-500.0,0.00027945,2]
[320045730,1711111873275,-601.74474858,0.00028493,2]
[320045731,1711111873286,-153.0,0.00029667,2]
[320045732,1711111873295,-153.0,0.00029753,2]
[320045733,1711111873305,-153.0,0.00032603,2]
[320045734,1711111873314,-146.6567915,0.00032876,2]
[320045735,1711111873323,-500.0,0.00032876,2]
[320045736,1711111873334,-500.0,0.00032876,2]
[320045737,1711111873343,-745.25,0.00032876,2]
[320045738,1711111873353,-1050.15,0.00032876,2]
[320045739,1711111873364,-822.63,0.00032876,2]
[320045740,1711111873373,-521.77,0.00032876,2]
[320045741,1711111873468,-500.0,0.00032876,2]
[320045742,1711111873478,-500.0,0.00032876,2]
[320045743,1711111873488,-500.0,0.00032876,2]
[320045744,1711111873498,-822.04,0.00032876,2]
[320045745,1711111873511,-765.25,0.00032876,2]
[320045746,1711111873521,-522.7,0.00032876,2]
[320045747,1711111873531,-500.0,0.00032876,2]
[320045748,1711111873543,-2819.12,0.00032876,2]
[320045749,1711111873556,-551.95,0.00032876,2]
[320045750,1711111873566,-1059.31,0.00032876,2]
[320045751,1711111873576,-1138.93,0.00032876,2]
[320045752,1711111873587,-500.0,0.00032876,2]
[320045753,1711111873596,-1081.36,0.00032876,2]
[320045754,1711111873606,-296.61172237,0.00032876,2]
[320045755,1711111873616,-1909.77,0.00032876,2]
[320045756,1711111873627,-3328.14,0.00032876,2]
[320045757,1711111873638,-504.67387645,0.00032876,2]
[320045758,1711111873648,-500.0,0.00032876,2]
[320045759,1711111873657,-1933.42,0.00032876,2]
[320045760,1711111873667,-697.43,0.00032876,2]
[320045761,1711111873677,-2814.01,0.00032876,2]
[320045762,1711111873686,-609.02,0.00032876,2]
[320045763,1711111873695,-701.09,0.00032876,2]
[320045764,1711111873706,-2894.22,0.00032876,2]
[320045765,1711111873715,-871.84,0.00032876,2]
[320045766,1711111873725,-500.0,0.00032876,2]
[320045767,1711111873735,-1479.79,0.00032876,2]
[320045768,1711111873745,-940.37,0.00032876,2]
[320045769,1711111873758,-4303.45,0.00032876,2]
[320045770,1711111873768,-430.07895609,0.00032876,2]
[320045771,1711111873777,-500.0,0.00032876,2]
[320045772,1711111873787,-632.84,0.00032876,2]
[320045773,1711111873797,-504.94,0.00032876,2]
[320045774,1711111873808,-500.0,0.00032876,2]
[320045775,1711111873817,-728.64,0.00032876,2]
[320045776,1711111873827,-500.0,0.00032876,2]
[320045777,1711111873837,-519.63,0.00032876,2]
[320045778,1711111873846,-500.0,0.00032876,2]
[320045779,1711111873856,-586.56,0.00032876,2]
[320045780,1711111873865,-882.68,0.00032876,2]
[320045781,1711111873874,-1163.15,0.00032876,2]
[320045782,1711111873884,-516.59,0.00032876,2]
[320045783,1711111873893,-627.89,0.00032876,2]
[320045784,1711111873903,-500.0,0.00032876,2]
[320045785,1711111873913,-593.01,0.00032876,2]
[320045786,1711111873923,-543.78,0.00032876,2]
[320045787,1711111873932,-500.0,0.00032876,2]
[320045788,1711111873942,-593.17,0.00032876,2]
[320045789,1711111873953,-946.09,0.00032876,2]
[320045790,1711111873963,-2447.47,0.00032876,2]
[320045791,1711111873973,-991.88145005,0.00032876,2]
[320045792,1711111873983,-991.88145005,0.00032876,2]
[320045793,1711111873995,-991.88145005,0.00032876,2]
[320045794,1711111874006,-991.88145005,0.00032876,2]
[320045795,1711111874018,-991.88145005,0.00032876,2]
[320045796,1711111874028,-991.88145005,0.00032876,2]
[320045797,1711111874038,-991.88145005,0.00032876,2]
[320045798,1711111874055,-991.88145005,0.00032876,2]
[320045799,1711111874066,-991.88145005,0.00032876,2]
[320045800,1711111874077,-395.38407998,0.00032876,2]
[320045801,1711111874087,-560.61,0.00032876,2]
[320045802,1711111874097,-2700.82,0.00032876,2]
[320045803,1711111874107,-1223.32045506,0.00032876,2]
[320045804,1711111874118,-1223.32045506,0.00032876,2]
[320045805,1711111874127,-500.0,0.00032876,2]
[320045806,1711111874152,-1223.32045506,0.00032876,2]
[320045807,1711111874162,-2015.68,0.00032876,2]
[320045808,1711111874172,-2908.47,0.00032876,2]
[320045809,1711111874181,-12394.08,0.00032876,2]
[320045810,1711111874190,-500.0,0.00032876,2]
[320045811,1711111874201,-2967.04,0.00032876,2]
[320045812,1711111874210,-3908.24,0.00032876,2]
[320045813,1711111874220,-500.0,0.00032876,2]
[320045814,1711111874229,-7010.86,0.00032876,2]
[320045815,1711111874240,-3562.59,0.00032876,2]
[320045816,1711111874252,-798.72,0.00032876,2]
[320045817,1711111874262,-5003.73,0.00032876,2]
[320045818,1711111874272,-1138.64,0.00032876,2]
[320045819,1711111874281,-620.82,0.00032876,2]
[320045820,1711111874291,-674.43,0.00032876,2]
[320045821,1711111874319,-28754.89,0.00032876,2]
[320045822,1711111874333,-749.25,0.00032876,2]
[320045823,1711111874349,-3444.81,0.00032876,2]
[320045824,1711111874360,-2023.32,0.00032876,2]
[320045825,1711111874369,-1405.19,0.00032876,2]
[320045826,1711111874379,-763.48,0.00032876,2]
[320045827,1711111874394,-757.09,0.00032876,2]
[320045828,1711111874409,-1538.43628808,0.00032876,2]
[320045833,1711112012261,2464093.35736166,0.00025516,60]
[320045841,1711112756442,389.70728979,0.000205,10]
[320045842,1711112756469,4981.67271021,0.000205,10]
[320045912,1711113038464,-400.0,0.00024223,2]
[320045914,1711113038474,-303.36590735,0.00024224,2]
[320045916,1711113038483,-158.44018112,0.00024224,2]
[320045918,1711113038492,-7815.08778336,0.00024251,2]
[320045921,1711113038504,-11520.10025299,0.00024251,2]
[320045923,1711113038524,-28421.16393753,0.00024251,2]
[320045925,1711113038534,-380.88302396,0.00024251,2]
[320045927,1711113038543,-439.45468912,0.00024251,2]
[320045930,1711113038553,-24900.0,0.00024252,2]
[320045932,1711113038562,-484.396994,0.00024343,2]
[320045933,1711113038572,-6914.11386493,0.00025,2]
[320045935,1711113038581,-150.5,0.00025242,35]
[320045937,1711113038590,-150.5,0.00025252,35]
[320045939,1711113038600,-150.5,0.00025262,35]
[320045941,1711113038609,-2284.25803805,0.00025383,2]
[320045944,1711113038619,-1000.0,0.00025393,2]
[320045946,1711113038628,-155.02,0.00025463,35]
[320045948,1711113038637,-710732.65868856,0.00025472,60]
[320045950,1711113038649,-1961.42136651,0.00025472,60]
[320046000,1711113046470,-1264.36735205,0.00023372,2]
[320046001,1711113046479,-25832.97578909,0.00025472,60]
[320046154,1711114232529,-280.47329147,0.00022408,2]
[320046324,1711114238532,-502.65764717,0.00022408,2]
[320046326,1711114238543,-641.81,0.00022408,2]
[320046329,1711114238555,-961.632,0.00022408,2]
[320046332,1711114238567,-22513.42706136,0.00022408,2]
[320046334,1711114238576,-169.0,0.00022759,2]
[320046336,1711114238586,-169.0,0.00023033,2]
[320046337,1711114238595,-170.0,0.00023307,2]
[320046338,1711114238605,-171.64352957,0.0002332,2]
[320046339,1711114238614,-199.64478458,0.0002332,2]
[320046340,1711114238623,-484.396994,0.00023367,2]
[320046341,1711114238636,-842.91156803,0.00023372,2]
[320046342,1711114238646,-300.0,0.00023419,2]
[320046343,1711114238655,-233.0646117,0.00023419,2]
[320046344,1711114238665,-190.6826713,0.00023419,2]
[320046345,1711114238674,-500.0,0.00023419,2]
[320046346,1711114238683,-500.0,0.00023419,2]
[320046347,1711114238692,-226.32370158,0.00023419,2]
[320046348,1711114238702,-363.09391746,0.00023419,2]
[320046349,1711114238711,-219.70985642,0.00023419,2]
[320046350,1711114238721,-47756.35197388,0.0002342,2]
[320046351,1711114238730,-2000.0,0.00023472,2]
[320046352,1711114238739,-11014.36,0.00023859,30]
[320046353,1711114238748,-2000.0,0.00023994,2]
[320046354,1711114238758,-164.303496,0.0002421,2]
[320046355,1711114238768,-2000.0,0.00024516,2]
[320046356,1711114238777,-280.0,0.00024658,2]
[320046357,1711114238786,-200.0,0.00024658,2]
[320046358,1711114238796,-7516.56780688,0.00024854,2]
[320046359,1711114238805,-187.32257474,0.00025272,2]
[320046360,1711114238815,-1000.0,0.00025388,2]
[320046361,1711114238825,-2610.58061485,0.00025398,2]
[320046362,1711114238834,-150.5,0.00025442,35]
[320046363,1711114238844,-150.5,0.00025452,35]
[320046364,1711114238854,-150.5,0.00025462,35]
[320046365,1711114238863,-500.0,0.00025471,2]
[320046366,1711114238872,-500.0,0.00025471,2]
[320046367,1711114238883,-500.0,0.00025471,2]
[320046368,1711114238892,-500.0,0.00025471,2]
[320046369,1711114238901,-500.0,0.00025471,2]
[320046370,1711114238911,-500.0,0.00025471,2]
[320046371,1711114238920,-500.0,0.00025471,2]
[320046372,1711114238929,-349.72,0.00025471,2]
[320046373,1711114238938,-400.0,0.00025471,2]
[320046374,1711114238948,-150.5,0.00025473,35]
[320046375,1711114238957,-150.5,0.00025483,35]
[320046376,1711114238967,-12414.22798405,0.00025486,2]
[320046377,1711114238977,-469.98746995,0.00025496,2]
[320046378,1711114238986,-196.28,0.00025496,35]
[320046379,1711114238995,-155.06047358,0.00025497,2]
[320046380,1711114239005,-899602.71560999,0.00025499,60]
[320046381,1711114239018,-10035.29475986,0.00025499,60]